fUST/lending_fUST_20250915
["ID","MTS","AMOUNT","RATE_DAILY","PERIOD"]
[385644982,1757937040835,-2993.66281309,0.00025,2]
[385644983,1757937040846,-431.0,0.00025053,2]
[385644984,1757937040855,-150.0,0.000251,10]
[385644985,1757937040865,-198.0,0.00025205,2]
[385644986,1757937040873,-151.0,0.00025205,2]
[385644987,1757937040883,-480.0,0.00025205,3]
[385644988,1757937040893,-480.0,0.00025205,3]
[385644989,1757937040904,-480.0,0.00025205,3]
[385644990,1757937040943,-480.0,0.00025205,3]
[385644991,1757937040981,-480.0,0.00025205,3]
[385644992,1757937041007,-480.0,0.00025205,3]
[385644993,1757937041016,-1257.74,0.00025205,3]
[385644994,1757937041025,-480.0,0.00025205,3]
[385644995,1757937041035,-685.32,0.00025205,3]
[385644996,1757937041044,-480.0,0.00025205,3]
[385644997,1757937041053,-7160.95,0.00025205,3]
[385644998,1757937041062,-480.0,0.00025205,3]
[385644999,1757937041071,-480.0,0.00025205,3]
[385645000,1757937041080,-220.49723217,0.00025205,3]
[385645001,1757937041090,-480.0,0.00025205,3]
[385645002,1757937041099,-480.0,0.00025205,3]
[385645003,1757937041108,-480.0,0.00025205,3]
[385645004,1757937041118,-1638.4,0.00025205,3]
[385645005,1757937041127,-480.0,0.00025205,3]
[385645006,1757937041136,-480.0,0.00025205,3]
[385645007,1757937041146,-480.0,0.00025205,3]
[385645008,1757937041156,-480.0,0.00025205,3]
[385645009,1757937041165,-480.0,0.00025205,3]
[385645010,1757937041175,-480.0,0.00025205,3]
[385645011,1757937041184,-368.09619398,0.00025205,3]
[385645012,1757937041194,-480.0,0.00025205,3]
[385645013,1757937041203,-4112.56,0.00025205,3]
[385645014,1757937041212,-480.0,0.00025205,3]
[385645015,1757937041221,-480.0,0.00025205,3]
[385645016,1757937041230,-237.7,0.00025205,3]
[385645017,1757937041239,-500.0,0.00025206,2]
[385645018,1757937041248,-500.74865934,0.00025221,2]
[385645019,1757937041257,-1000.0,0.00025221,2]
[385645020,1757937041267,-434.0,0.00025243,2]
[385645021,1757937041276,-1000.0,0.00025321,2]
[385645022,1757937041285,-1001.73394212,0.00025421,2]
[385645023,1757937041294,-318.61173722,0.00025421,2]
[385645024,1757937041303,-1143.24831229,0.00025421,2]
[385645025,1757937041313,-1000.0,0.00025421,2]
[385645026,1757937041323,-1000.0,0.00025421,2]
[385645027,1757937041332,-1000.0,0.00025421,2]
[385645028,1757937041341,-1000.0,0.00025421,2]
[385645029,1757937041351,-1000.0,0.00025421,2]
[385645030,1757937041360,-1000.0,0.00025421,2]
[385645031,1757937041369,-1000.0,0.00025421,2]
[385645032,1757937041379,-160.0,0.00025422,2]
[385645033,1757937041389,-900.0,0.00025469,3]
[385645034,1757937041398,-204.0,0.00025479,2]
[385645035,1757937041407,-623.28909831,0.00025479,3]
[385645036,1757937041416,-152.05,0.00025479,3]
[385645037,1757937041426,-480.0,0.00025479,3]
[385645038,1757937041435,-461.04,0.00025479,3]
[385645039,1757937041444,-480.0,0.00025479,3]
[385645040,1757937041453,-480.0,0.00025479,3]
[385645041,1757937041462,-1257.74,0.00025479,3]
[385645042,1757937041472,-480.0,0.00025479,3]
[385645043,1757937041481,-685.32,0.00025479,3]
[385645044,1757937041490,-480.0,0.00025479,3]
[385645045,1757937041499,-7160.95,0.00025479,3]
[385645046,1757937041509,-480.0,0.00025479,3]
[385645047,1757937041518,-480.0,0.00025479,3]
[385645048,1757937041527,-480.0,0.00025479,3]
[385645049,1757937041536,-480.0,0.00025479,3]
[385645050,1757937041545,-480.0,0.00025479,3]
[385645051,1757937041554,-1638.4,0.00025479,3]
[385645052,1757937041563,-525.59,0.00025479,3]
[385645053,1757937041573,-480.0,0.00025479,3]
[385645054,1757937041582,-480.0,0.00025479,3]
[385645055,1757937041591,-480.0,0.00025479,3]
[385645056,1757937041602,-480.0,0.00025479,3]
[385645057,1757937041611,-480.0,0.00025479,3]
[385645058,1757937041621,-480.0,0.00025479,3]
[385645059,1757937041630,-4112.56,0.00025479,3]
[385645060,1757937041639,-480.0,0.00025479,3]
[385645061,1757937041648,-480.0,0.00025479,3]
[385645062,1757937041658,-500.0,0.0002548,2]
[385645063,1757937041667,-1000.0,0.00025516,2]
[385645064,1757937041677,-2000.0,0.00025516,2]
[385645065,1757937041686,-2000.0,0.00025516,2]
[385645066,1757937041695,-2010.61830943,0.00025516,2]
[385645067,1757937041704,-1000.0,0.00025516,2]
[385645068,1757937041714,-2000.0,0.00025516,2]
[385645069,1757937041722,-2000.0,0.00025516,2]
[385645070,1757937041732,-434.0,0.00025517,2]
[385645071,1757937041741,-166.228071,0.00025753,7]
[385645072,1757937041750,-480.0,0.00025753,3]
[385645073,1757937041759,-183.69,0.00025753,3]
[385645074,1757937041768,-430.53,0.00025753,3]
[385645075,1757937041778,-1257.74,0.00025753,3]
[385645076,1757937041787,-480.0,0.00025753,3]
[385645077,1757937041799,-480.0,0.00025753,3]
[385645078,1757937041808,-685.32,0.00025753,3]
[385645079,1757937041817,-7160.95,0.00025753,3]
[385645080,1757937041826,-480.0,0.00025753,3]
[385645081,1757937041835,-480.0,0.00025753,3]
[385645082,1757937041845,-480.0,0.00025753,3]
[385645083,1757937041855,-480.0,0.00025753,3]
[385645084,1757937041864,-480.0,0.00025753,3]
[385645085,1757937041875,-1638.4,0.00025753,3]
[385645086,1757937041885,-480.0,0.00025753,3]
[385645087,1757937041894,-480.0,0.00025753,3]
[385645088,1757937041904,-593.08,0.00025753,3]
[385645089,1757937041913,-480.0,0.00025753,3]
[385645090,1757937041923,-480.0,0.00025753,3]
[385645091,1757937041933,-480.0,0.00025753,3]
[385645092,1757937041943,-4112.56,0.00025753,3]
[385645093,1757937041952,-541.96,0.00025753,3]
[385645094,1757937041961,-480.0,0.00025753,3]
[385645095,1757937041971,-500.0,0.00025754,2]
[385645096,1757937042074,-1500.0,0.00025768,2]
[385645097,1757937042083,-1153.08382945,0.0002578,2]
[385645098,1757937042093,-434.0,0.00025791,2]
[385645099,1757937042102,-1500.0,0.00025868,2]
[385645100,1757937042111,-1500.0,0.00025968,2]
[385645101,1757937042120,-1500.0,0.00025968,2]
[385645102,1757937042128,-157.07382482,0.00025968,2]
[385645103,1757937042137,-1500.0,0.00025968,2]
[385645104,1757937042146,-1500.0,0.00025968,2]
[385645105,1757937042155,-1000.0,0.00025968,2]
[385645106,1757937042164,-1500.0,0.00025968,2]
[385645107,1757937042174,-260.0,0.0002597,2]
[385645108,1757937042183,-150.0,0.00025973,2]
[385645109,1757937042192,-38987.98743302,0.00026,10]
[385645110,1757937042201,-161.0,0.00026,5]
[385645111,1757937042210,-531.33695587,0.00026,10]
[385645112,1757937042219,-160.0,0.00026,10]
[385645113,1757937042228,-500.0,0.00026027,10]
[385645114,1757937042237,-500.0,0.00026027,10]
[385645115,1757937042246,-500.0,0.00026027,10]
[385645116,1757937042255,-420.0,0.00026027,10]
[385645117,1757937042264,-480.0,0.00026027,3]
[385645118,1757937042274,-1257.74,0.00026027,3]
[385645119,1757937042283,-480.0,0.00026027,3]
[385645120,1757937042292,-685.32,0.00026027,3]
[385645121,1757937042301,-480.0,0.00026027,3]
[385645122,1757937042310,-7160.95,0.00026027,3]
[385645123,1757937042319,-480.0,0.00026027,3]
[385645124,1757937042327,-480.0,0.00026027,3]
[385645125,1757937042337,-214.61957159,0.00026027,3]
[385645126,1757937042346,-480.0,0.00026027,3]
[385645127,1757937042355,-480.0,0.00026027,3]
[385645128,1757937042364,-1638.4,0.00026027,3]
[385645129,1757937042373,-2398.32,0.00026027,4]
[385645130,1757937042382,-480.0,0.00026027,3]
[385645131,1757937042392,-480.0,0.00026027,3]
[385645132,1757937042401,-480.0,0.00026027,3]
[385645133,1757937042410,-319.84,0.00026027,3]
[385645134,1757937042419,-480.0,0.00026027,3]
[385645135,1757937042428,-4112.56,0.00026027,3]
[385645136,1757937042437,-480.0,0.00026027,3]
[385645137,1757937042446,-500.0,0.00026028,2]
[385645138,1757937042455,-1679.2507149,0.00026064,2]
[385645139,1757937042464,-2500.0,0.00026064,2]
[385645140,1757937042473,-2517.14396974,0.00026064,2]
[385645141,1757937042483,-1000.0,0.00026064,2]
[385645142,1757937042492,-434.0,0.00026065,2]
[385645143,1757937042500,-160.76537437,0.00026255,2]
[385645144,1757937042509,-150.0,0.00026255,2]
[385645145,1757937042518,-1920.959049,0.0002628,5]
[385645146,1757937042527,-1000.0,0.000263,5]
[385645147,1757937042536,-649.0,0.000263,2]
[385645148,1757937042546,-480.0,0.00026301,3]
[385645149,1757937042555,-1257.74,0.00026301,3]
[385645150,1757937042564,-204.6269948,0.00026301,3]
[385645151,1757937042574,-685.32,0.00026301,3]
[385645152,1757937042583,-480.0,0.00026301,3]
[385645153,1757937042592,-7160.95,0.00026301,3]
[385645154,1757937042601,-480.0,0.00026301,3]
[385645155,1757937042610,-480.0,0.00026301,3]
[385645156,1757937042619,-480.0,0.00026301,3]
[385645157,1757937042628,-480.0,0.00026301,3]
[385645158,1757937042638,-1638.4,0.00026301,3]
[385645159,1757937042646,-480.0,0.00026301,3]
[385645160,1757937042656,-480.0,0.00026301,3]
[385645161,1757937042665,-591.63,0.00026301,3]
[385645163,1757937042675,-480.0,0.00026301,3]
[385645165,1757937042683,-4112.56,0.00026301,3]
[385645167,1757937042693,-480.0,0.00026301,3]
[385645169,1757937042702,-500.0,0.00026302,2]
[385645171,1757937042710,-4855.75137355,0.0002631,2]
[385645173,1757937042726,-996.57883305,0.0002631,2]
[385645175,1757937042737,-3713.9346397,0.0002631,2]
[385645176,1757937042748,-429.42624312,0.0002631,2]
[385645177,1757937042776,-5389.54909041,0.0002631,2]
[385645179,1757937042785,-389.41044593,0.00026316,2]
[385645180,1757937042796,-1000.0,0.0002632,5]
[385645181,1757937042806,-9945.04334061,0.0002632,2]
[385645182,1757937042815,-434.0,0.00026339,2]
[385645183,1757937042824,-1000.0,0.0002634,5]
[385645184,1757937042833,-1000.0,0.0002636,5]
[385645185,1757937042844,-1000.0,0.0002638,5]
[385645186,1757937042853,-2000.0,0.000264,2]
[385645187,1757937042862,-489.0,0.000264,2]
[385645188,1757937042871,-17.03088944,0.000264,7]
[385645196,1757937043390,-658.61107851,0.00024089,2]
[385645197,1757937043401,-1600.82538713,0.00024089,2]
[385645199,1757937043411,-392.65090143,0.00024142,2]
[385645201,1757937043420,-2259.43646564,0.00024326,2]
[385645203,1757937043429,-1040.62911056,0.000264,7]
[385645204,1757937043438,-1000.0,0.000264,5]
[385645206,1757937043447,-154.1822045,0.00026411,2]
[385645208,1757937043456,-368.1945531,0.00026416,2]
[385645210,1757937043466,-1000.0,0.0002642,5]
[385645212,1757937043475,-1000.0,0.0002644,5]
[385645214,1757937043484,-1000.0,0.0002646,5]
[385645216,1757937043494,-168.0,0.00026477,7]
[385645218,1757937043503,-1070.372727,0.0002648,5]
[385645220,1757937043512,-1000.0,0.0002648,5]
[385645222,1757937043521,-206.9918157,0.0002648,5]
[385645223,1757937043533,-300.00072039,0.0002648,5]
[385645225,1757937043543,-545.31397078,0.0002648,5]
[385645226,1757937043554,-101.18666813,0.0002648,5]
[385645228,1757937043563,-2574.23621968,0.000265,7]
[385645247,1757937046358,-2259.43646564,0.00024563,2]
[385645248,1757937046368,-392.65090143,0.00025116,2]
[385645249,1757937046378,-9765.01378032,0.000265,7]
[385645250,1757937046387,-1000.0,0.000265,5]
[385645251,1757937046397,-1000.0,0.000265,5]
[385645252,1757937046406,-1000.0,0.000265,5]
[385645253,1757937046415,-2000.0,0.00026516,2]
[385645254,1757937046425,-2000.0,0.00026516,2]
[385645255,1757937046434,-209.05238701,0.00026516,2]
[385645256,1757937046444,-2000.0,0.00026516,2]
[385645257,1757937046453,-2000.0,0.00026516,2]
[385645258,1757937046463,-360.0,0.00026518,2]
[385645259,1757937046471,-300.0,0.00026521,2]
[385645260,1757937046480,-480.0,0.00026575,3]
[385645261,1757937046490,-1257.74,0.00026575,3]
[385645262,1757937046500,-685.32,0.00026575,3]
[385645263,1757937046509,-480.0,0.00026575,3]
[385645264,1757937046518,-7160.95,0.00026575,3]
[385645265,1757937046527,-480.0,0.00026575,3]
[385645266,1757937046536,-480.0,0.00026575,3]
[385645267,1757937046546,-480.0,0.00026575,3]
[385645268,1757937046555,-247.94955787,0.00026575,3]
[385645269,1757937046564,-1638.4,0.00026575,3]
[385645270,1757937046573,-480.0,0.00026575,3]
[385645271,1757937046583,-576.02,0.00026575,3]
[385645272,1757937046592,-480.0,0.00026575,3]
[385645273,1757937046601,-4112.56,0.00026575,3]
[385645274,1757937046611,-228.37,0.00026575,3]
[385645275,1757937046620,-384.48816426,0.00026576,2]
[385645276,1757937046630,-1140.10932349,0.00026612,2]
[385645277,1757937046639,-434.0,0.00026613,2]
[385645278,1757937046648,-9945.04334053,0.00026727,2]
[385645279,1757937046658,-168.0,0.00026756,2]
[385645280,1757937046667,-250.0,0.00026802,2]
[385645281,1757937046676,-480.0,0.00026849,3]
[385645282,1757937046686,-1257.74,0.00026849,3]
[385645283,1757937046695,-685.32,0.00026849,3]
[385645284,1757937046705,-262.95,0.00026849,3]
[385645285,1757937046714,-7160.95,0.00026849,3]
[385645286,1757937046723,-480.0,0.00026849,3]
[385645287,1757937046732,-480.0,0.00026849,3]
[385645288,1757937046742,-480.0,0.00026849,3]
[385645289,1757937046751,-1638.4,0.00026849,3]
[385645290,1757937046760,-480.0,0.00026849,3]
[385645291,1757937046770,-480.0,0.00026849,3]
[385645292,1757937046779,-4112.56,0.00026849,3]
[385645293,1757937046789,-434.0,0.00026887,2]
[385645294,1757937046801,-160.0,0.00026915,3]
[385645295,1757937046811,-575.0,0.0002694,7]
[385645296,1757937046819,-1100.0,0.00026951,2]
[385645297,1757937046829,-12131.91768656,0.00027,2]
[385645298,1757937046841,-1629.38357076,0.00027,2]
[385645299,1757937046854,-1011.63711006,0.00027,2]
[385645300,1757937046867,-1813.7828875,0.00027,2]
[385645307,1757937523858,-3185.48279635,0.00022275,2]
[385645308,1757937530477,3629.0444073,0.000225,2]
[385645309,1757937530498,1370.9555927,0.000225,2]
[385645311,1757937548632,5000.0,0.000225,2]
[385645312,1757937559087,5000.0,0.000225,2]
[385645313,1757937567387,165.77456623,0.000225,2]
[385645314,1757937576749,5000.0,0.000225,2]
[385645316,1757937585248,5000.0,0.000225,2]
[385645317,1757937603764,5000.0,0.000225,2]
[385645318,1757937612672,5000.0,0.000225,2]
[385645319,1757937629265,5000.0,0.000225,2]
[385645320,1757937637872,5000.0,0.000225,2]
[385645321,1757937652556,58684.2130138,0.00024658,120]
[385645322,1757937655100,5000.0,0.000225,2]
[385645370,1757938232541,-304.0,0.000225,2]
[385645428,1757938233053,-304.0,0.000227,2]
[385645430,1757938233063,-304.0,0.00023,2]
[385645432,1757938233072,-304.0,0.000232,2]
[385645434,1757938233081,-304.0,0.000234,2]
[385645436,1757938233089,-615.366697,0.00024205,2]
[385645437,1757938233099,-300.0,0.00024405,2]
[385645439,1757938233109,-311.0,0.00024405,2]
[385645441,1757938233118,-8694.43803053,0.00024406,2]
[385645444,1757938233130,-265.31770726,0.00024406,2]
[385645446,1757938233141,-699.856,0.00024406,2]
[385645448,1757938233153,-933.20081596,0.00024406,2]
[385645450,1757938233163,-160.0,0.00024545,2]
[385645452,1757938233172,-226.19701501,0.00024557,2]
[385645454,1757938233183,-209.37397821,0.00024557,2]
[385645456,1757938233193,-396.2642336,0.00024641,2]
[385645458,1757938233207,-103.7357664,0.00024641,2]
[385645459,1757938233217,-500.0,0.00024641,2]
[385645461,1757938233227,-500.0,0.00024641,2]
[385645463,1757938233238,-500.0,0.00024641,2]
[385645465,1757938233248,-500.0,0.00024641,2]
[385645467,1757938233258,-500.0,0.00024641,2]
[385645469,1757938233268,-437.12397696,0.00024641,2]
[385645471,1757938233279,-786.39744328,0.00024656,2]
[385645473,1757938233290,-741.54415851,0.00024656,2]
[385645534,1757938238492,-10870.75229498,0.00024656,2]
[385645535,1757938238502,-207.78966634,0.00024656,2]
[385645536,1757938238511,-217.18608567,0.00024656,2]
[385645537,1757938238520,-480.0,0.00024657,3]
[385645538,1757938238529,-480.0,0.00024657,3]
[385645539,1757938238538,-480.0,0.00024657,3]
[385645540,1757938238547,-295.10279992,0.00024657,3]
[385645541,1757938238556,-556.69590608,0.00024657,3]
[385645542,1757938238565,-480.0,0.00024657,3]
[385645543,1757938238573,-294.96565972,0.00024657,3]
[385645544,1757938238582,-480.0,0.00024657,3]
[385645545,1757938238591,-786.08,0.00024657,3]
[385645546,1757938238600,-4475.6,0.00024657,3]
[385645547,1757938238609,-480.0,0.00024657,3]
[385645548,1757938238618,-480.0,0.00024657,3]
[385645549,1757938238627,-480.0,0.00024657,3]
[385645550,1757938238636,-1024.0,0.00024657,3]
[385645551,1757938238646,-480.0,0.00024657,3]
[385645552,1757938238654,-480.0,0.00024657,3]
[385645553,1757938238664,-2570.35,0.00024657,3]
[385645554,1757938238674,-480.0,0.00024657,3]
[385645555,1757938238683,-480.0,0.00024657,3]
[385645556,1757938238693,-500.0,0.00024931,3]
[385645557,1757938238702,-480.0,0.00024931,3]
[385645558,1757938238711,-480.0,0.00024931,3]
[385645559,1757938238721,-480.0,0.00024931,3]
[385645560,1757938238729,-480.0,0.00024931,3]
[385645561,1757938238738,-786.08,0.00024931,3]
[385645562,1757938238747,-4475.6,0.00024931,3]
[385645563,1757938238756,-480.0,0.00024931,3]
[385645564,1757938238765,-480.0,0.00024931,3]
[385645565,1757938238774,-1024.0,0.00024931,3]
[385645566,1757938238783,-480.0,0.00024931,3]
[385645567,1757938238792,-2570.35,0.00024931,3]
[385645568,1757938238801,-480.0,0.00024931,3]
[385645569,1757938238810,-503.06404545,0.00025071,2]
[385645570,1757938238819,-424.96540003,0.00025205,3]
[385645571,1757938238829,-480.0,0.00025205,3]
[385645572,1757938238838,-480.0,0.00025205,3]
[385645573,1757938238847,-480.0,0.00025205,3]
[385645574,1757938238856,-480.0,0.00025205,3]
[385645575,1757938238865,-786.08,0.00025205,3]
[385645576,1757938238874,-4475.6,0.00025205,3]
[385645577,1757938238884,-480.0,0.00025205,3]
[385645578,1757938238893,-480.0,0.00025205,3]
[385645579,1757938238902,-1024.0,0.00025205,3]
[385645580,1757938238911,-480.0,0.00025205,3]
[385645581,1757938238920,-2570.35,0.00025205,3]
[385645582,1757938238929,-480.0,0.00025205,3]
[385645583,1757938238938,-500.0,0.00025257,2]
[385645584,1757938238947,-500.0,0.0002526,2]
[385645585,1757938238956,-435.57099318,0.00025328,2]
[385645586,1757938238965,-157.54490115,0.0002537,2]
[385645587,1757938238975,-182.71199432,0.000254,2]
[385645588,1757938238984,-480.0,0.00025479,3]
[385645589,1757938238993,-480.0,0.00025479,3]
[385645590,1757938239002,-480.0,0.00025479,3]
[385645591,1757938239011,-480.0,0.00025479,3]
[385645592,1757938239020,-786.08,0.00025479,3]
[385645593,1757938239029,-4475.6,0.00025479,3]
[385645594,1757938239038,-480.0,0.00025479,3]
[385645595,1757938239047,-480.0,0.00025479,3]
[385645596,1757938239056,-1024.0,0.00025479,3]
[385645597,1757938239065,-613.76342556,0.00025479,3]
[385645598,1757938239075,-2570.35,0.00025479,3]
[385645599,1757938239084,-480.0,0.00025479,3]
[385645600,1757938239092,-500.0,0.000256,2]
[385645601,1757938239101,-500.0,0.000256,2]
[385645602,1757938239110,-339.79,0.00025656,2]
[385645603,1757938239119,-342.89,0.00025743,10]
[385645604,1757938239128,-285.74,0.00025743,10]
[385645605,1757938239138,-480.0,0.00025753,3]
[385645606,1757938239146,-480.0,0.00025753,3]
[385645607,1757938239155,-480.0,0.00025753,3]
[385645608,1757938239164,-480.0,0.00025753,3]
[385645609,1757938239173,-786.08,0.00025753,3]
[385645610,1757938239182,-4475.6,0.00025753,3]
[385645611,1757938239190,-480.0,0.00025753,3]
[385645612,1757938239203,-480.0,0.00025753,3]
[385645613,1757938239212,-1024.0,0.00025753,3]
[385645614,1757938239222,-2570.35,0.00025753,3]
[385645615,1757938239230,-480.0,0.00025753,3]
[385645616,1757938239240,-406.946,0.00025756,2]
[385645617,1757938239249,-411.054,0.00025756,2]
[385645618,1757938239258,-500.0,0.00025805,2]
[385645619,1757938239268,-411.46,0.00025907,10]
[385645620,1757938239278,-718.62360079,0.00025917,2]
[385645621,1757938239289,-362.53790239,0.00025991,2]
[385645622,1757938239298,-176.31797328,0.00025991,2]
[385645623,1757938239307,-500.0,0.00025991,2]
[385645624,1757938239316,-383.875456,0.00025991,2]
[385645625,1757938239324,-58256.45856223,0.00025992,2]
[385645626,1757938239391,-2182.45457163,0.00025992,2]
[385645627,1757938239405,-301.71173275,0.00025992,2]
[385645628,1757938239415,-6999.84066322,0.00025992,2]
[385645692,1757938246604,-57202.52827017,0.00025992,2]
[385645694,1757938246614,-160.0,0.00025996,2]
[385645695,1757938246623,-2219.3,0.00026001,2]
[385645696,1757938246632,-480.0,0.00026027,3]
[385645697,1757938246641,-422.02308252,0.00026027,3]
[385645698,1757938246650,-348.47273992,0.00026027,3]
[385645699,1757938246659,-480.0,0.00026027,3]
[385645700,1757938246669,-786.08,0.00026027,3]
[385645701,1757938246678,-4475.6,0.00026027,3]
[385645702,1757938246686,-480.0,0.00026027,3]
[385645703,1757938246695,-480.0,0.00026027,3]
[385645704,1757938246704,-1024.0,0.00026027,3]
[385645705,1757938246714,-2570.35,0.00026027,3]
[385645706,1757938246723,-266.62,0.00026027,3]
[385645707,1757938246737,-718.62360077,0.00026032,2]
[385645708,1757938246746,-435.57099318,0.000261,2]
[385645709,1757938246755,-718.62360077,0.00026147,2]
[385645710,1757938246764,-375.54333627,0.00026148,2]
[385645711,1757938246773,-844.90723205,0.00026189,2]
[385645712,1757938246782,-6197.95192059,0.00026198,2]
[385645713,1757938246791,-718.62360077,0.00026261,2]
[385645714,1757938246800,-500.0,0.00026273,2]
[385645715,1757938246809,-500.0,0.00026273,2]
[385645716,1757938246818,-500.0,0.00026273,2]
[385645717,1757938246827,-500.0,0.00026273,2]
[385645718,1757938246836,-238.11,0.00026278,10]
[385645719,1757938246845,-124942.9938,0.00026288,2]
[385645720,1757938246854,-22232.92762037,0.00026298,2]
[385645721,1757938246864,-480.0,0.00026301,3]
[385645722,1757938246873,-480.0,0.00026301,3]
[385645723,1757938246882,-786.08,0.00026301,3]
[385645724,1757938246891,-4475.6,0.00026301,3]
[385645725,1757938246900,-480.0,0.00026301,3]
[385645726,1757938246909,-593.65292561,0.00026301,3]
[385645727,1757938246918,-690.28727806,0.00026301,3]
[385645728,1757938246934,-333.71272194,0.00026301,3]
[385645729,1757938246943,-792.00855544,0.00026301,3]
[385645821,1757939267266,1222.34112,0.00018,2]
[385645975,1757939431902,-307.683348,0.00024723,2]
[385645976,1757939431913,-310.0,0.0002475,2]
[385645977,1757939431923,-417.15472785,0.00025,10]
[385645978,1757939431932,-417.15472785,0.00025,10]
[385645979,1757939431942,-277.0,0.000251,2]
[385645980,1757939431951,-480.0,0.00025204,3]
[385645981,1757939431961,-480.0,0.00025204,3]
[385645982,1757939431971,-480.0,0.00025478,3]
[385645983,1757939431981,-480.0,0.00025478,3]
[385645984,1757939431991,-300.0,0.0002575,2]
[385645985,1757939432000,-51.0130693,0.00025751,3]
[385645986,1757939432013,-428.9869307,0.00025751,3]
[385645987,1757939432023,-572.13097533,0.00025751,3]
[385645989,1757939432036,-745.83309717,0.00025751,3]
[385645991,1757939432048,-549.30598622,0.00025751,3]
[385645993,1757939432061,-740.19601894,0.00025751,3]
[385646146,1757939522110,307.683349,0.00025038,2]
[385646165,1757939725318,1040.94821962,0.00027397,120]
[385646178,1757939922092,201.46,0.00030051,50]
[385646179,1757939998667,151.0,0.00027397,120]
[385646180,1757940007753,151.0,0.00027397,120]
[385646181,1757940015104,151.0,0.00027397,120]
[385646182,1757940022626,151.0,0.00027397,120]
[385646183,1757940030925,151.0,0.00027397,120]
[385646184,1757940037521,151.0,0.00027397,120]
[385646185,1757940044374,151.0,0.00027397,120]
[385646186,1757940055094,151.0,0.00027397,120]
[385646187,1757940063037,151.0,0.00027397,120]
[385646188,1757940084321,151.0,0.00027397,120]
[385646189,1757940092625,151.0,0.00027397,120]
[385646190,1757940124910,231.4642395,0.00027397,120]
[385646281,1757940632163,-417.15472785,0.00025,10]
[385646283,1757940632173,-78.59611643,0.00025,10]
[385646285,1757940632184,-338.55861142,0.00025,10]
[385646287,1757940632194,-311.98435058,0.00025024,2]
[385646289,1757940632206,-263.01564942,0.00025024,2]
[385646290,1757940632215,-575.0,0.00025088,2]
[385646292,1757940632224,-195.81370662,0.0002519,2]
[385646294,1757940632234,-782.47157164,0.0002519,2]
[385646296,1757940632243,-1564.45184704,0.00025569,2]
[385646297,1757940632254,-575.0,0.00025652,2]
[385646299,1757940632263,-161.8674926,0.000257,2]
[385646301,1757940632273,-168.0,0.00025783,2]
[385646304,1757940632282,-168.0,0.00025794,2]
[385646307,1757940632291,-3606.19434011,0.00025799,2]
[385646309,1757940632300,-300.0,0.00025799,2]
[385646312,1757940632309,-584.7832531,0.000258,2]
[385646315,1757940632319,-161.8674926,0.000258,2]
[385646318,1757940632328,-584.7832531,0.000258,2]
[385646320,1757940632337,-161.8674926,0.000258,2]
[385646322,1757940632347,-160.0,0.00025846,2]
[385646324,1757940632356,-160.0,0.00025846,2]
[385646326,1757940632365,-847.45018724,0.00025846,2]
[385646327,1757940632374,-160.0,0.00025848,2]
[385646329,1757940632383,-217.82061966,0.00025848,2]
[385646331,1757940632392,-160.0,0.00025848,2]